[Event "Titled Tuesday Blitz April 05 Late 2022"]
[White "Novikova, Galina"]
[Black "Papasimakopoulos, Alexandros"]
[WhiteFideId "4157095"]
[BlackFideId "4244125"]
[WhiteElo "1863"]
[BlackElo "2340"]
[Result "0-1"]
[Round "01"]
[TimeControl "180+1"]
[Date "2022.04.06"]
[WhiteClock "0:00:27"]
[BlackClock "0:00:10"]

1. e4 {[%clk 0:03:00]}  e6 {[%clk 0:02:44]} 2. Nf3 {[%clk 0:02:57]}  d5 {[%clk 0:02:28]} 3. e5 {[%clk 0:02:57]}  c5 {[%clk 0:02:28]} 4. b4 {[%clk 0:02:58]}  c4 {[%clk 0:02:27]} 5. c3 {[%clk 0:02:57]}  a5 {[%clk 0:02:27]} 6. b5 {[%clk 0:02:57]}  Nd7 {[%clk 0:02:24]} 7. d3 {[%clk 0:02:45]}  cxd3 {[%clk 0:02:23]} 8. Bxd3 {[%clk 0:02:46]}  Ne7 {[%clk 0:02:23]} 9. O-O {[%clk 0:02:45]}  Ng6 {[%clk 0:02:13]} 10. Re1 {[%clk 0:02:45]}  b6 {[%clk 0:02:07]} 11. a4 {[%clk 0:02:44]}  Bb7 {[%clk 0:02:05]} 12. Bc2 {[%clk 0:02:39]}  Qc7 {[%clk 0:01:57]} 13. Qe2 {[%clk 0:02:30]}  Be7 {[%clk 0:01:50]} 14. Bd2 {[%clk 0:02:19]}  Nc5 {[%clk 0:01:44]} 15. h4 {[%clk 0:02:07]}  Nxh4 {[%clk 0:01:16]} 16. Nxh4 {[%clk 0:02:08]}  Bxh4 {[%clk 0:01:17]} 17. Qg4 {[%clk 0:02:08]}  Be7 {[%clk 0:01:18]} 18. Qxg7 {[%clk 0:02:07]}  O-O-O {[%clk 0:01:18]} 19. Qxf7 {[%clk 0:02:04]}  Rdf8 {[%clk 0:01:15]} 20. Qh5 {[%clk 0:02:01]}  Rhg8 {[%clk 0:01:10]} 21. Qh3 {[%clk 0:01:45]}  d4 {[%clk 0:00:58]} 22. g3 {[%clk 0:01:39]}  d3 {[%clk 0:00:56]} 23. Bd1 {[%clk 0:01:32]}  Ne4 {[%clk 0:00:43]} 24. Qxe6+ {[%clk 0:01:24]}  Kb8 {[%clk 0:00:43]} 25. Be3 {[%clk 0:01:02]}  Nxg3 {[%clk 0:00:31]} 26. fxg3 {[%clk 0:00:59]}  Rxg3+ {[%clk 0:00:31]} 27. Kh2 {[%clk 0:00:59]}  Rg2+ {[%clk 0:00:29]} 28. Kh3 {[%clk 0:01:00]}  Rfg8 {[%clk 0:00:20]} 29. Bf4 {[%clk 0:00:48]}  Bc8 {[%clk 0:00:20]} 30. Qxc8+ {[%clk 0:00:46]}  Qxc8+ {[%clk 0:00:21]} 31. e6+ {[%clk 0:00:46]}  Ka7 {[%clk 0:00:22]} 32. Bf3 {[%clk 0:00:44]}  Qe8 {[%clk 0:00:16]} 33. Nd2 {[%clk 0:00:40]}  Qg6 {[%clk 0:00:16]} 34. Nf1 {[%clk 0:00:36]}  Rg4 {[%clk 0:00:12]} 35. Bg3 {[%clk 0:00:27]}  Rxg3+ {[%clk 0:00:10]} 0-1


[Site "https://www.chess.com"]

[Event "Titled Tuesday Blitz April 05 Late 2022"]
[White "Pakleza, Zbigniew"]
[Black "Rottenwohrer Suarez, Juan"]
[WhiteFideId "1119290"]
[BlackFideId "32068182"]
[WhiteElo "2467"]
[BlackElo "2158"]
[Result "1-0"]
[Round "01"]
[TimeControl "180+1"]
[Date "2022.04.06"]
[WhiteClock "0:00:35"]
[BlackClock "0:00:13"]

1. d4 {[%clk 0:03:00]}  Nf6 {[%clk 0:02:57]} 2. Nf3 {[%clk 0:03:01]}  g6 {[%clk 0:02:54]} 3. Bf4 {[%clk 0:03:01]}  Bg7 {[%clk 0:02:52]} 4. e3 {[%clk 0:03:01]}  O-O {[%clk 0:02:52]} 5. Be2 {[%clk 0:03:01]}  c5 {[%clk 0:02:49]} 6. c3 {[%clk 0:03:00]}  b6 {[%clk 0:02:48]} 7. O-O {[%clk 0:03:00]}  d6 {[%clk 0:02:49]} 8. h3 {[%clk 0:03:00]}  Nbd7 {[%clk 0:02:50]} 9. Nbd2 {[%clk 0:03:00]}  Bb7 {[%clk 0:02:50]} 10. a4 {[%clk 0:03:00]}  a6 {[%clk 0:02:51]} 11. Bg3 {[%clk 0:02:56]}  Qc7 {[%clk 0:02:46]} 12. Qb3 {[%clk 0:02:55]}  h6 {[%clk 0:02:20]} 13. Rfe1 {[%clk 0:02:48]}  Rfc8 {[%clk 0:02:13]} 14. Bc4 {[%clk 0:02:45]}  e6 {[%clk 0:02:08]} 15. Bf1 {[%clk 0:02:14]}  Ne4 {[%clk 0:01:58]} 16. Nxe4 {[%clk 0:02:10]}  Bxe4 {[%clk 0:01:59]} 17. Nd2 {[%clk 0:02:07]}  Bd5 {[%clk 0:01:56]} 18. Qa3 {[%clk 0:01:58]}  b5 {[%clk 0:01:45]} 19. Red1 {[%clk 0:01:17]}  Rab8 {[%clk 0:01:19]} 20. axb5 {[%clk 0:01:08]}  axb5 {[%clk 0:01:20]} 21. Qa5 {[%clk 0:01:09]}  Qc6 {[%clk 0:00:48]} 22. e4 {[%clk 0:00:54]}  Bxe4 {[%clk 0:00:43]} 23. Nxe4 {[%clk 0:00:55]}  Qxe4 {[%clk 0:00:43]} 24. Bxd6 {[%clk 0:00:56]}  Rb7 {[%clk 0:00:18]} 25. dxc5 {[%clk 0:00:34]}  Nxc5 {[%clk 0:00:18]} 26. Bxc5 {[%clk 0:00:35]}  Rxc5 {[%clk 0:00:16]} 27. Qa8+ {[%clk 0:00:36]}  Kh7 {[%clk 0:00:13]} 28. Rd7 {[%clk 0:00:35]} 1-0


[Site "https://www.chess.com"]

[Event "Titled Tuesday Blitz April 05 Late 2022"]
[White "Paravyan, David"]
[Black "Sadovsky, Artem"]
[WhiteFideId "4194985"]
[BlackFideId "4155840"]
[WhiteElo "2569"]
[BlackElo "2314"]
[Result "1-0"]
[Round "01"]
[TimeControl "180+1"]
[Date "2022.04.05"]
[WhiteClock "0:00:10"]
[BlackClock "0:00:02"]

1. e4 {[%clk 0:02:52]}  g6 {[%clk 0:02:59]} 2. d4 {[%clk 0:02:52]}  Bg7 {[%clk 0:03:00]} 3. Nf3 {[%clk 0:02:52]}  c6 {[%clk 0:02:59]} 4. h3 {[%clk 0:02:51]}  d5 {[%clk 0:02:58]} 5. e5 {[%clk 0:02:51]}  h5 {[%clk 0:02:58]} 6. Bd3 {[%clk 0:02:51]}  Nh6 {[%clk 0:02:58]} 7. O-O {[%clk 0:02:51]}  Bf5 {[%clk 0:02:58]} 8. Bxh6 {[%clk 0:02:51]}  Rxh6 {[%clk 0:02:57]} 9. Bxf5 {[%clk 0:02:52]}  gxf5 {[%clk 0:02:57]} 10. c4 {[%clk 0:02:42]}  e6 {[%clk 0:02:54]} 11. cxd5 {[%clk 0:02:41]}  cxd5 {[%clk 0:02:50]} 12. Nc3 {[%clk 0:02:37]}  a6 {[%clk 0:02:49]} 13. Rc1 {[%clk 0:02:34]}  Nd7 {[%clk 0:02:44]} 14. Na4 {[%clk 0:02:32]}  Rg6 {[%clk 0:02:36]} 15. Qb3 {[%clk 0:02:29]}  Rb8 {[%clk 0:02:13]} 16. Rc2 {[%clk 0:02:25]}  Bh6 {[%clk 0:02:06]} 17. Nc5 {[%clk 0:02:15]}  Nxc5 {[%clk 0:01:55]} 18. Rxc5 {[%clk 0:02:16]}  Kf8 {[%clk 0:01:51]} 19. Kh1 {[%clk 0:02:13]}  Kg8 {[%clk 0:01:49]} 20. Qc3 {[%clk 0:02:06]}  Qd7 {[%clk 0:01:38]} 21. b3 {[%clk 0:02:01]}  Kh8 {[%clk 0:01:27]} 22. Rc7 {[%clk 0:01:57]}  Qb5 {[%clk 0:01:28]} 23. Re1 {[%clk 0:01:48]}  Rbg8 {[%clk 0:01:28]} 24. Nh4 {[%clk 0:01:49]}  R6g7 {[%clk 0:01:20]} 25. Qf3 {[%clk 0:01:22]}  Bg5 {[%clk 0:01:20]} 26. Nxf5 {[%clk 0:00:34]}  exf5 {[%clk 0:01:17]} 27. Qxh5+ {[%clk 0:00:35]}  Rh7 {[%clk 0:01:16]} 28. Qf3 {[%clk 0:00:36]}  Bd8 {[%clk 0:01:04]} 29. Rc5 {[%clk 0:00:35]}  Qb4 {[%clk 0:01:03]} 30. Rd1 {[%clk 0:00:36]}  Bb6 {[%clk 0:00:52]} 31. Rxd5 {[%clk 0:00:31]}  Qe7 {[%clk 0:00:46]} 32. Qxf5 {[%clk 0:00:23]}  Rg5 {[%clk 0:00:43]} 33. Qc8+ {[%clk 0:00:21]}  Rg8 {[%clk 0:00:41]} 34. Qf5 {[%clk 0:00:20]}  Qe6 {[%clk 0:00:40]} 35. Qxe6 {[%clk 0:00:19]}  fxe6 {[%clk 0:00:41]} 36. Rd6 {[%clk 0:00:19]}  Bd8 {[%clk 0:00:32]} 37. Rxe6 {[%clk 0:00:19]}  Rf7 {[%clk 0:00:32]} 38. Kg1 {[%clk 0:00:18]}  Bh4 {[%clk 0:00:33]} 39. Rd2 {[%clk 0:00:18]}  Bg5 {[%clk 0:00:31]} 40. Rd3 {[%clk 0:00:16]}  Rc8 {[%clk 0:00:26]} 41. h4 {[%clk 0:00:08]}  Rc1+ {[%clk 0:00:21]} 42. Kh2 {[%clk 0:00:09]}  Bf4+ {[%clk 0:00:22]} 43. g3 {[%clk 0:00:09]}  Bxg3+ {[%clk 0:00:05]} 44. fxg3 {[%clk 0:00:10]}  Rf2+ {[%clk 0:00:02]} 45. Kh3 {[%clk 0:00:10]}  Rh1+ {[%clk 0:00:02]} 46. Kg4 {[%clk 0:00:11]}  Rxa2 {[%clk 0:00:02]} 47. Rf3 {[%clk 0:00:10]} 1-0


[Site "https://www.chess.com"]

[Event "Titled Tuesday Blitz April 05 Late 2022"]
[White "Petrova, Irina"]
[Black "Domingo Nunez, Alejandro"]
[WhiteFideId "14124122"]
[BlackFideId "22245561"]
[WhiteElo "1993"]
[BlackElo "2215"]
[Result "0-1"]
[Round "01"]
[TimeControl "180+1"]
[Date "2022.04.06"]
[WhiteClock "0:00:06"]
[BlackClock "0:00:24"]

1. e4 {[%clk 0:03:00]}  g6 {[%clk 0:02:44]} 2. d4 {[%clk 0:03:00]}  Bg7 {[%clk 0:02:44]} 3. Nc3 {[%clk 0:03:00]}  c6 {[%clk 0:02:44]} 4. h3 {[%clk 0:02:49]}  d5 {[%clk 0:02:45]} 5. e5 {[%clk 0:02:49]}  f6 {[%clk 0:02:45]} 6. exf6 {[%clk 0:02:35]}  exf6 {[%clk 0:02:45]} 7. Nf3 {[%clk 0:02:35]}  Bf5 {[%clk 0:02:45]} 8. Be2 {[%clk 0:02:28]}  Nh6 {[%clk 0:02:44]} 9. O-O {[%clk 0:02:27]}  O-O {[%clk 0:02:45]} 10. Bf4 {[%clk 0:02:23]}  Nf7 {[%clk 0:02:44]} 11. Qd2 {[%clk 0:02:19]}  Nd7 {[%clk 0:02:41]} 12. Rfe1 {[%clk 0:02:18]}  Nb6 {[%clk 0:02:39]} 13. Bf1 {[%clk 0:02:17]}  Nd6 {[%clk 0:02:35]} 14. b3 {[%clk 0:02:11]}  Ne4 {[%clk 0:02:15]} 15. Nxe4 {[%clk 0:02:10]}  dxe4 {[%clk 0:02:05]} 16. Nh2 {[%clk 0:02:08]}  g5 {[%clk 0:02:01]} 17. Bg3 {[%clk 0:02:03]}  Kh8 {[%clk 0:01:43]} 18. Rad1 {[%clk 0:02:02]}  Bg6 {[%clk 0:01:41]} 19. f3 {[%clk 0:01:45]}  f5 {[%clk 0:01:13]} 20. fxe4 {[%clk 0:01:44]}  fxe4 {[%clk 0:01:14]} 21. Ng4 {[%clk 0:01:44]}  Nd5 {[%clk 0:01:07]} 22. Ne5 {[%clk 0:01:38]}  Bf5 {[%clk 0:01:06]} 23. c4 {[%clk 0:01:29]}  Nf6 {[%clk 0:01:01]} 24. Qxg5 {[%clk 0:01:23]}  Be6 {[%clk 0:00:55]} 25. Qh4 {[%clk 0:01:13]}  Qe8 {[%clk 0:00:55]} 26. Be2 {[%clk 0:00:48]}  Rd8 {[%clk 0:00:55]} 27. Kh1 {[%clk 0:00:35]}  Bf5 {[%clk 0:00:43]} 28. d5 {[%clk 0:00:21]}  cxd5 {[%clk 0:00:42]} 29. cxd5 {[%clk 0:00:22]}  Rxd5 {[%clk 0:00:36]} 30. Bc4 {[%clk 0:00:15]}  Rxe5 {[%clk 0:00:35]} 31. Bxe5 {[%clk 0:00:15]}  Qxe5 {[%clk 0:00:36]} 32. Qg5 {[%clk 0:00:10]}  h6 {[%clk 0:00:28]} 33. Qh4 {[%clk 0:00:09]}  e3 {[%clk 0:00:24]} 34. Be2 {[%clk 0:00:07]}  Ne4 {[%clk 0:00:24]} 35. Rf1 {[%clk 0:00:05]}  Nf2+ {[%clk 0:00:22]} 36. Rxf2 {[%clk 0:00:05]}  exf2 {[%clk 0:00:23]} 37. Qxf2 {[%clk 0:00:06]}  Bc2 {[%clk 0:00:24]} 0-1


[Site "https://www.chess.com"]

[Event "Titled Tuesday Blitz April 05 Late 2022"]
[White "Petrovic, Aleksa"]
[Black "Zhigalko, Sergei"]
[WhiteFideId "967629"]
[BlackFideId "13502956"]
[WhiteElo "2198"]
[BlackElo "2662"]
[Result "1-0"]
[Round "01"]
[TimeControl "180+1"]
[Date "2022.04.05"]
[WhiteClock "0:00:11"]
[BlackClock "0:00:02"]

1. d4 {[%clk 0:02:56]}  Nf6 {[%clk 0:02:58]} 2. Nf3 {[%clk 0:02:55]}  e6 {[%clk 0:02:59]} 3. c4 {[%clk 0:02:55]}  b6 {[%clk 0:02:57]} 4. g3 {[%clk 0:02:52]}  Ba6 {[%clk 0:02:56]} 5. Qa4 {[%clk 0:02:51]}  Bb7 {[%clk 0:02:54]} 6. Bg2 {[%clk 0:02:51]}  c5 {[%clk 0:02:52]} 7. dxc5 {[%clk 0:02:52]}  bxc5 {[%clk 0:02:52]} 8. O-O {[%clk 0:02:53]}  Qb6 {[%clk 0:02:51]} 9. Rd1 {[%clk 0:02:52]}  Be7 {[%clk 0:02:51]} 10. Nc3 {[%clk 0:02:52]}  O-O {[%clk 0:02:51]} 11. Bf4 {[%clk 0:02:52]}  Rd8 {[%clk 0:02:50]} 12. Rab1 {[%clk 0:02:51]}  Nc6 {[%clk 0:02:43]} 13. Qc2 {[%clk 0:02:33]}  d6 {[%clk 0:02:36]} 14. Rd2 {[%clk 0:02:30]}  h6 {[%clk 0:02:33]} 15. Rbd1 {[%clk 0:02:23]}  e5 {[%clk 0:02:33]} 16. Be3 {[%clk 0:02:21]}  Nd4 {[%clk 0:02:32]} 17. Qb1 {[%clk 0:02:06]}  Rab8 {[%clk 0:02:25]} 18. Nh4 {[%clk 0:01:55]}  Bxg2 {[%clk 0:02:16]} 19. Kxg2 {[%clk 0:01:43]}  Qc6+ {[%clk 0:02:11]} 20. f3 {[%clk 0:01:41]}  Bf8 {[%clk 0:01:59]} 21. Kf2 {[%clk 0:01:31]}  g6 {[%clk 0:01:51]} 22. b3 {[%clk 0:01:22]}  Rb7 {[%clk 0:01:45]} 23. Ng2 {[%clk 0:01:18]}  Re8 {[%clk 0:01:37]} 24. Ne1 {[%clk 0:00:47]}  e4 {[%clk 0:01:25]} 25. Bxd4 {[%clk 0:00:44]}  cxd4 {[%clk 0:01:25]} 26. Rxd4 {[%clk 0:00:44]}  d5 {[%clk 0:01:26]} 27. Kg2 {[%clk 0:00:35]}  exf3+ {[%clk 0:01:11]} 28. exf3 {[%clk 0:00:35]}  Bb4 {[%clk 0:00:59]} 29. Nxd5 {[%clk 0:00:30]}  Re2+ {[%clk 0:00:51]} 30. Kh1 {[%clk 0:00:18]}  Nxd5 {[%clk 0:00:18]} 31. Rxd5 {[%clk 0:00:19]}  Qe6 {[%clk 0:00:15]} 32. Rd8+ {[%clk 0:00:15]}  Kh7 {[%clk 0:00:14]} 33. Ng2 {[%clk 0:00:14]}  Qh3 {[%clk 0:00:04]} 34. Rg1 {[%clk 0:00:12]}  Bc3 {[%clk 0:00:02]} 35. Qd3 {[%clk 0:00:11]} 1-0


[Site "https://www.chess.com"]

[Event "Titled Tuesday Blitz April 05 Late 2022"]
[White "Piesik, Piotr"]
[Black "Andrews, Todd"]
[WhiteFideId "1136194"]
[BlackFideId "2012456"]
[WhiteElo "2190"]
[BlackElo "2294"]
[Result "1-0"]
[Round "01"]
[TimeControl "180+1"]
[Date "2022.04.06"]
[WhiteClock "0:01:17"]
[BlackClock "0:00:29"]

1. Nf3 {[%clk 0:02:30]}  c5 {[%clk 0:02:56]} 2. g3 {[%clk 0:02:30]}  b6 {[%clk 0:02:56]} 3. Bg2 {[%clk 0:02:31]}  Bb7 {[%clk 0:02:57]} 4. O-O {[%clk 0:02:31]}  Nf6 {[%clk 0:02:57]} 5. c4 {[%clk 0:02:32]}  e6 {[%clk 0:02:57]} 6. Nc3 {[%clk 0:02:32]}  Be7 {[%clk 0:02:58]} 7. d3 {[%clk 0:02:32]}  O-O {[%clk 0:02:58]} 8. e4 {[%clk 0:02:32]}  d6 {[%clk 0:02:58]} 9. Ne1 {[%clk 0:02:32]}  Nc6 {[%clk 0:02:46]} 10. f4 {[%clk 0:02:32]}  a6 {[%clk 0:02:45]} 11. Nc2 {[%clk 0:02:31]}  Qc7 {[%clk 0:02:37]} 12. g4 {[%clk 0:02:31]}  Rfd8 {[%clk 0:02:32]} 13. g5 {[%clk 0:02:31]}  Nd7 {[%clk 0:02:28]} 14. Rf3 {[%clk 0:02:30]}  Bf8 {[%clk 0:02:27]} 15. Rh3 {[%clk 0:02:29]}  g6 {[%clk 0:02:27]} 16. Be3 {[%clk 0:02:25]}  Bg7 {[%clk 0:02:27]} 17. Qg4 {[%clk 0:02:24]}  Nd4 {[%clk 0:02:19]} 18. Rc1 {[%clk 0:02:23]}  Nf8 {[%clk 0:02:16]} 19. Nd1 {[%clk 0:02:15]}  d5 {[%clk 0:02:05]} 20. cxd5 {[%clk 0:02:09]}  Nxc2 {[%clk 0:02:01]} 21. Rxc2 {[%clk 0:02:04]}  exd5 {[%clk 0:02:01]} 22. e5 {[%clk 0:02:03]}  d4 {[%clk 0:01:49]} 23. Bxb7 {[%clk 0:02:01]}  Qxb7 {[%clk 0:01:50]} 24. Bd2 {[%clk 0:02:00]}  Qd7 {[%clk 0:01:39]} 25. Qxd7 {[%clk 0:01:59]}  Rxd7 {[%clk 0:01:38]} 26. Nf2 {[%clk 0:01:59]}  Ne6 {[%clk 0:01:30]} 27. Ne4 {[%clk 0:01:59]}  a5 {[%clk 0:01:20]} 28. a4 {[%clk 0:01:57]}  Rb8 {[%clk 0:01:17]} 29. Rf3 {[%clk 0:01:53]}  Nc7 {[%clk 0:01:14]} 30. Nd6 {[%clk 0:01:45]}  Nd5 {[%clk 0:01:13]} 31. h4 {[%clk 0:01:40]}  Bf8 {[%clk 0:01:13]} 32. Nc4 {[%clk 0:01:38]}  Be7 {[%clk 0:01:12]} 33. f5 {[%clk 0:01:38]}  gxf5 {[%clk 0:01:08]} 34. Rxf5 {[%clk 0:01:39]}  Bf8 {[%clk 0:01:03]} 35. Rc1 {[%clk 0:01:38]}  Kg7 {[%clk 0:01:03]} 36. Rcf1 {[%clk 0:01:38]}  Kg8 {[%clk 0:01:03]} 37. h5 {[%clk 0:01:34]}  Bg7 {[%clk 0:01:02]} 38. Nd6 {[%clk 0:01:22]}  Bxe5 {[%clk 0:00:46]} 39. Nxf7 {[%clk 0:01:21]}  Bg7 {[%clk 0:00:35]} 40. h6 {[%clk 0:01:21]}  Bf8 {[%clk 0:00:33]} 41. Ne5 {[%clk 0:01:20]}  Ne3 {[%clk 0:00:28]} 42. Bxe3 {[%clk 0:01:17]}  dxe3 {[%clk 0:00:29]} 43. Nxd7 {[%clk 0:01:17]} 1-0


[Site "https://www.chess.com"]

[Event "Titled Tuesday Blitz April 05 Late 2022"]
[White "Putri, Regita Desyari"]
[Black "Fishbein, Alexander"]
[WhiteFideId "7109083"]
[BlackFideId "2000377"]
[WhiteElo "1930"]
[BlackElo "2442"]
[Result "0-1"]
[Round "01"]
[TimeControl "180+1"]
[Date "2022.04.06"]
[WhiteClock "0:01:53"]
[BlackClock "0:02:19"]

1. c4 {[%clk 0:02:40]}  Nf6 {[%clk 0:02:59]} 2. Nf3 {[%clk 0:02:40]}  g6 {[%clk 0:02:59]} 3. Nc3 {[%clk 0:02:39]}  Bg7 {[%clk 0:02:59]} 4. e4 {[%clk 0:02:40]}  O-O {[%clk 0:02:59]} 5. d4 {[%clk 0:02:40]}  d6 {[%clk 0:03:00]} 6. Be2 {[%clk 0:02:41]}  e5 {[%clk 0:03:00]} 7. O-O {[%clk 0:02:41]}  exd4 {[%clk 0:03:00]} 8. Nxd4 {[%clk 0:02:42]}  c6 {[%clk 0:03:00]} 9. Be3 {[%clk 0:02:37]}  Re8 {[%clk 0:02:59]} 10. f3 {[%clk 0:02:37]}  d5 {[%clk 0:02:59]} 11. cxd5 {[%clk 0:02:30]}  Nxd5 {[%clk 0:02:59]} 12. Bg5 {[%clk 0:02:30]}  Qxg5 {[%clk 0:02:56]} 13. exd5 {[%clk 0:02:17]}  Qe3+ {[%clk 0:02:56]} 14. Kh1 {[%clk 0:02:17]}  Qxd4 {[%clk 0:02:56]} 15. Qb3 {[%clk 0:02:16]}  Qb6 {[%clk 0:02:52]} 16. Qc2 {[%clk 0:02:15]}  Bf5 {[%clk 0:02:50]} 17. Bd3 {[%clk 0:02:15]}  Bxd3 {[%clk 0:02:50]} 18. Qxd3 {[%clk 0:02:15]}  Na6 {[%clk 0:02:49]} 19. d6 {[%clk 0:02:14]}  Rad8 {[%clk 0:02:48]} 20. Rad1 {[%clk 0:02:12]}  Nc5 {[%clk 0:02:47]} 21. Qc2 {[%clk 0:02:12]}  Ne6 {[%clk 0:02:42]} 22. Na4 {[%clk 0:02:09]}  Qb5 {[%clk 0:02:37]} 23. b3 {[%clk 0:02:03]}  Rxd6 {[%clk 0:02:32]} 24. Rde1 {[%clk 0:01:58]}  Red8 {[%clk 0:02:30]} 25. Qe4 {[%clk 0:01:55]}  Qd5 {[%clk 0:02:26]} 26. Qg4 {[%clk 0:01:53]}  h5 {[%clk 0:02:26]} 27. Qg3 {[%clk 0:01:52]}  Qg5 {[%clk 0:02:21]} 28. Qf2 {[%clk 0:01:52]}  Rd2 {[%clk 0:02:20]} 29. Qg1 {[%clk 0:01:53]}  Bd4 {[%clk 0:02:19]} 0-1


[Site "https://www.chess.com"]

[Event "Titled Tuesday Blitz April 05 Late 2022"]
[White "Roman, Rodrigo"]
[Black "Aldokhin, Ivan"]
[WhiteFideId "3701220"]
[BlackFideId "24115720"]
[WhiteElo "2001"]
[BlackElo "2231"]
[Result "0-1"]
[Round "01"]
[TimeControl "180+1"]
[Date "2022.04.06"]
[WhiteClock "0:01:02"]
[BlackClock "0:01:25"]

1. e4 {[%clk 0:03:00]}  c5 {[%clk 0:02:53]} 2. Nf3 {[%clk 0:03:00]}  e6 {[%clk 0:02:53]} 3. Nc3 {[%clk 0:03:00]}  Nc6 {[%clk 0:02:53]} 4. Bc4 {[%clk 0:02:59]}  a6 {[%clk 0:02:53]} 5. a4 {[%clk 0:02:58]}  Nf6 {[%clk 0:02:52]} 6. d3 {[%clk 0:02:54]}  d5 {[%clk 0:02:51]} 7. exd5 {[%clk 0:02:55]}  exd5 {[%clk 0:02:51]} 8. Ba2 {[%clk 0:02:50]}  Be7 {[%clk 0:02:51]} 9. O-O {[%clk 0:02:50]}  O-O {[%clk 0:02:39]} 10. Bg5 {[%clk 0:02:50]}  Nb4 {[%clk 0:02:32]} 11. Re1 {[%clk 0:02:43]}  Nxa2 {[%clk 0:02:29]} 12. Rxa2 {[%clk 0:02:42]}  Bg4 {[%clk 0:02:01]} 13. Rxe7 {[%clk 0:02:32]}  Qxe7 {[%clk 0:01:54]} 14. Nxd5 {[%clk 0:02:31]}  Qe6 {[%clk 0:01:51]} 15. Bxf6 {[%clk 0:01:38]}  Qxd5 {[%clk 0:01:50]} 16. c4 {[%clk 0:01:38]}  Qf5 {[%clk 0:01:41]} 17. Bc3 {[%clk 0:01:28]}  Rad8 {[%clk 0:01:37]} 18. d4 {[%clk 0:01:18]}  Bxf3 {[%clk 0:01:33]} 19. gxf3 {[%clk 0:01:18]}  cxd4 {[%clk 0:01:32]} 20. Bd2 {[%clk 0:01:17]}  Rd6 {[%clk 0:01:29]} 21. b4 {[%clk 0:01:06]}  Re8 {[%clk 0:01:26]} 22. c5 {[%clk 0:01:04]}  Rg6+ {[%clk 0:01:26]} 23. Kh1 {[%clk 0:01:02]}  Qh3 {[%clk 0:01:25]} 0-1


[Site "https://www.chess.com"]

[Event "Titled Tuesday Blitz April 05 Late 2022"]
[White "Romanchuk, Viktor"]
[Black "Maranhao,Jose Renato Ruiz"]
[WhiteFideId "14109271"]
[BlackFideId "2135175"]
[WhiteElo "2242"]
[BlackElo "1970"]
[Result "1-0"]
[Round "01"]
[TimeControl "180+1"]
[Date "2022.04.06"]
[WhiteClock "0:01:15"]
[BlackClock "0:00:02"]

1. d4 {[%clk 0:03:00]}  d5 {[%clk 0:02:59]} 2. c4 {[%clk 0:02:59]}  c6 {[%clk 0:02:59]} 3. Nc3 {[%clk 0:02:59]}  Nf6 {[%clk 0:02:59]} 4. e3 {[%clk 0:03:00]}  e6 {[%clk 0:02:58]} 5. Nf3 {[%clk 0:02:59]}  Nbd7 {[%clk 0:02:58]} 6. Qc2 {[%clk 0:02:59]}  Bd6 {[%clk 0:02:56]} 7. b3 {[%clk 0:02:59]}  O-O {[%clk 0:02:50]} 8. Bb2 {[%clk 0:02:59]}  Qe7 {[%clk 0:02:39]} 9. Be2 {[%clk 0:02:56]}  e5 {[%clk 0:02:37]} 10. cxd5 {[%clk 0:02:50]}  Nxd5 {[%clk 0:02:24]} 11. Nxd5 {[%clk 0:02:40]}  cxd5 {[%clk 0:02:22]} 12. dxe5 {[%clk 0:02:39]}  Nxe5 {[%clk 0:02:18]} 13. O-O {[%clk 0:02:35]}  Nxf3+ {[%clk 0:01:59]} 14. Bxf3 {[%clk 0:02:36]}  Be6 {[%clk 0:01:59]} 15. Rac1 {[%clk 0:02:11]}  Rac8 {[%clk 0:01:45]} 16. Qd2 {[%clk 0:02:05]}  Rxc1 {[%clk 0:00:33]} 17. Rxc1 {[%clk 0:02:01]}  Rd8 {[%clk 0:00:34]} 18. Qd4 {[%clk 0:01:58]}  f6 {[%clk 0:00:24]} 19. Qxa7 {[%clk 0:01:57]}  Be5 {[%clk 0:00:15]} 20. Bd4 {[%clk 0:01:38]}  Bf7 {[%clk 0:00:06]} 21. Qc5 {[%clk 0:01:23]}  Qxc5 {[%clk 0:00:05]} 22. Rxc5 {[%clk 0:01:20]}  Bxd4 {[%clk 0:00:03]} 23. exd4 {[%clk 0:01:21]}  Ra8 {[%clk 0:00:02]} 24. a4 {[%clk 0:01:20]}  b6 {[%clk 0:00:01]} 25. Rb5 {[%clk 0:01:18]}  Re8 {[%clk 0:00:02]} 26. h4 {[%clk 0:01:15]} 1-0


[Site "https://www.chess.com"]

[Event "Titled Tuesday Blitz April 05 Late 2022"]
[White "Ronka, Erik"]
[Black "Hakobyan, Aram"]
[WhiteFideId "505080"]
[BlackFideId "13306677"]
[WhiteElo "2264"]
[BlackElo "2557"]
[Result "0-1"]
[Round "01"]
[TimeControl "180+1"]
[Date "2022.04.05"]
[WhiteClock "0:00:04"]
[BlackClock "0:00:40"]

1. e4 {[%clk 0:02:59]}  c5 {[%clk 0:02:55]} 2. Nf3 {[%clk 0:02:57]}  a6 {[%clk 0:02:55]} 3. c3 {[%clk 0:02:57]}  d5 {[%clk 0:02:55]} 4. exd5 {[%clk 0:02:58]}  Qxd5 {[%clk 0:02:55]} 5. d4 {[%clk 0:02:58]}  e6 {[%clk 0:02:55]} 6. Be3 {[%clk 0:02:57]}  cxd4 {[%clk 0:02:55]} 7. cxd4 {[%clk 0:02:58]}  Nf6 {[%clk 0:02:55]} 8. Nc3 {[%clk 0:02:58]}  Qd6 {[%clk 0:02:56]} 9. Bd3 {[%clk 0:02:58]}  Nc6 {[%clk 0:02:56]} 10. Rc1 {[%clk 0:02:58]}  Be7 {[%clk 0:02:55]} 11. O-O {[%clk 0:02:58]}  O-O {[%clk 0:02:55]} 12. Qd2 {[%clk 0:02:55]}  Rd8 {[%clk 0:02:51]} 13. Ne4 {[%clk 0:02:48]}  Nxe4 {[%clk 0:02:47]} 14. Bxe4 {[%clk 0:02:49]}  Bd7 {[%clk 0:02:44]} 15. Rfd1 {[%clk 0:02:49]}  Be8 {[%clk 0:02:42]} 16. a3 {[%clk 0:02:36]}  Rac8 {[%clk 0:02:37]} 17. Qe2 {[%clk 0:02:18]}  Bf6 {[%clk 0:02:29]} 18. d5 {[%clk 0:02:12]}  exd5 {[%clk 0:02:29]} 19. Bxd5 {[%clk 0:02:11]}  Qe7 {[%clk 0:02:20]} 20. h3 {[%clk 0:02:01]}  h6 {[%clk 0:02:16]} 21. Ba2 {[%clk 0:01:56]}  Ne5 {[%clk 0:02:06]} 22. Nd4 {[%clk 0:01:43]}  Rxc1 {[%clk 0:01:51]} 23. Rxc1 {[%clk 0:01:32]}  Ng6 {[%clk 0:01:51]} 24. Nf3 {[%clk 0:01:16]}  Nf4 {[%clk 0:01:45]} 25. Qc2 {[%clk 0:01:08]}  Nd3 {[%clk 0:01:43]} 26. Bb1 {[%clk 0:00:47]}  g6 {[%clk 0:01:12]} 27. Rd1 {[%clk 0:00:47]}  Nxb2 {[%clk 0:01:12]} 28. Rxd8 {[%clk 0:00:42]}  Qxd8 {[%clk 0:01:13]} 29. Bxh6 {[%clk 0:00:31]}  Bc6 {[%clk 0:01:13]} 30. Nd2 {[%clk 0:00:18]}  Bg5 {[%clk 0:00:59]} 31. Bxg5 {[%clk 0:00:15]}  Qxg5 {[%clk 0:00:59]} 32. f3 {[%clk 0:00:12]}  Qe3+ {[%clk 0:00:57]} 33. Kh2 {[%clk 0:00:12]}  Qxa3 {[%clk 0:00:56]} 34. Ne4 {[%clk 0:00:05]}  Bxe4 {[%clk 0:00:49]} 35. Qxe4 {[%clk 0:00:06]}  Qd6+ {[%clk 0:00:49]} 36. Kg1 {[%clk 0:00:05]}  b5 {[%clk 0:00:45]} 37. Qa8+ {[%clk 0:00:04]}  Kg7 {[%clk 0:00:44]} 38. Be4 {[%clk 0:00:05]}  Nc4 {[%clk 0:00:40]} 39. Qxa6 {[%clk 0:00:04]}  Qxa6 {[%clk 0:00:40]} 0-1


[Site "https://www.chess.com"]